[Event "Titled Tuesday Blitz February 01 A 2022"]
[White "Andreikin, Dmitry"]
[Black "Shimanov, Aleksandr"]
[WhiteFideId "4158814"]
[BlackFideId "4198603"]
[WhiteElo "2736"]
[BlackElo "2636"]
[Result "1/2-1/2"]
[Round "09"]
[TimeControl "180+1"]
[Date "2022.02.01"]
[WhiteClock "0:00:05"]
[BlackClock "0:00:08"]

1. d4 {[%clk 0:03:00]}  d5 {[%clk 0:02:56]} 2. Nf3 {[%clk 0:03:00]}  Nf6 {[%clk 0:02:55]} 3. Bf4 {[%clk 0:02:59]}  c5 {[%clk 0:02:48]} 4. e3 {[%clk 0:02:59]}  Nc6 {[%clk 0:02:48]} 5. Nbd2 {[%clk 0:02:58]}  Bg4 {[%clk 0:02:35]} 6. c3 {[%clk 0:02:50]}  e6 {[%clk 0:02:32]} 7. Bb5 {[%clk 0:02:41]}  Nd7 {[%clk 0:02:21]} 8. Qa4 {[%clk 0:02:40]}  Qc8 {[%clk 0:02:17]} 9. e4 {[%clk 0:02:15]}  a6 {[%clk 0:02:06]} 10. Be2 {[%clk 0:02:02]}  Be7 {[%clk 0:01:52]} 11. exd5 {[%clk 0:02:00]}  Nb6 {[%clk 0:01:46]} 12. Qd1 {[%clk 0:01:56]}  Nxd5 {[%clk 0:01:46]} 13. Bg3 {[%clk 0:01:56]}  cxd4 {[%clk 0:01:45]} 14. cxd4 {[%clk 0:01:43]}  O-O {[%clk 0:01:43]} 15. Rc1 {[%clk 0:01:41]}  Qd8 {[%clk 0:01:41]} 16. O-O {[%clk 0:01:41]}  Bf6 {[%clk 0:01:37]} 17. Ne4 {[%clk 0:01:39]}  Bxf3 {[%clk 0:01:32]} 18. Nxf6+ {[%clk 0:01:20]}  Qxf6 {[%clk 0:01:32]} 19. Bxf3 {[%clk 0:01:20]}  Nxd4 {[%clk 0:01:28]} 20. Bxd5 {[%clk 0:01:20]}  exd5 {[%clk 0:01:28]} 21. Rc7 {[%clk 0:01:02]}  b5 {[%clk 0:01:28]} 22. h3 {[%clk 0:00:49]}  Ne6 {[%clk 0:01:25]} 23. Rc6 {[%clk 0:00:45]}  Qxb2 {[%clk 0:01:17]} 24. Qxd5 {[%clk 0:00:45]}  Rfd8 {[%clk 0:00:57]} 25. Rd6 {[%clk 0:00:35]}  Rac8 {[%clk 0:00:50]} 26. Qb7 {[%clk 0:00:24]}  Qxa2 {[%clk 0:00:45]} 27. Rxa6 {[%clk 0:00:24]}  Qc4 {[%clk 0:00:40]} 28. Rb6 {[%clk 0:00:22]}  Nd4 {[%clk 0:00:39]} 29. Re1 {[%clk 0:00:16]}  h6 {[%clk 0:00:32]} 30. Kh2 {[%clk 0:00:16]}  Re8 {[%clk 0:00:12]} 31. Rxe8+ {[%clk 0:00:10]}  Rxe8 {[%clk 0:00:13]} 32. Qd7 {[%clk 0:00:10]}  Ra8 {[%clk 0:00:10]} 33. Be5 {[%clk 0:00:06]}  Ne6 {[%clk 0:00:08]} 34. Qxb5 {[%clk 0:00:06]}  Qxb5 {[%clk 0:00:08]} 35. Rxb5 {[%clk 0:00:07]}  Rc8 {[%clk 0:00:06]} 36. Bg3 {[%clk 0:00:06]}  Kh7 {[%clk 0:00:06]} 37. Rb2 {[%clk 0:00:06]}  g5 {[%clk 0:00:05]} 38. Rd2 {[%clk 0:00:06]}  Kg6 {[%clk 0:00:06]} 39. Be5 {[%clk 0:00:06]}  Rc4 {[%clk 0:00:06]} 40. Bb2 {[%clk 0:00:06]}  h5 {[%clk 0:00:06]} 41. Re2 {[%clk 0:00:06]}  h4 {[%clk 0:00:06]} 42. Rd2 {[%clk 0:00:06]}  Kf5 {[%clk 0:00:06]} 43. Rd5+ {[%clk 0:00:06]}  Kg6 {[%clk 0:00:07]} 44. Be5 {[%clk 0:00:06]}  Rc5 {[%clk 0:00:07]} 45. Rxc5 {[%clk 0:00:05]}  Nxc5 {[%clk 0:00:07]} 46. g4 {[%clk 0:00:05]}  hxg3+ {[%clk 0:00:08]} 47. fxg3 {[%clk 0:00:05]}  f5 {[%clk 0:00:08]} 48. Bd6 {[%clk 0:00:04]}  Ne4 {[%clk 0:00:08]} 49. Bb8 {[%clk 0:00:05]}  Nf6 {[%clk 0:00:08]} 50. Kg2 {[%clk 0:00:05]}  Ne4 {[%clk 0:00:08]} 51. Kf3 {[%clk 0:00:05]}  Nf6 {[%clk 0:00:08]} 1/2-1/2


[Site "https://www.chess.com"]

[Event "Titled Tuesday Blitz February 01 A 2022"]
[White "Bluebaum, Matthias"]
[Black "Bortnyk, Olexandr"]
[WhiteFideId "24651516"]
[BlackFideId "14120828"]
[WhiteElo "2550"]
[BlackElo "2723"]
[Result "0-1"]
[Round "09"]
[TimeControl "180+1"]
[Date "2022.02.01"]
[WhiteClock "0:00:03"]
[BlackClock "0:00:09"]

1. d4 {[%clk 0:03:00]}  g6 {[%clk 0:03:00]} 2. c4 {[%clk 0:03:01]}  Bg7 {[%clk 0:03:00]} 3. e4 {[%clk 0:03:01]}  c6 {[%clk 0:03:00]} 4. Nc3 {[%clk 0:03:00]}  d6 {[%clk 0:02:58]} 5. Nf3 {[%clk 0:02:54]}  Bg4 {[%clk 0:02:57]} 6. Be3 {[%clk 0:02:54]}  Bxf3 {[%clk 0:02:56]} 7. gxf3 {[%clk 0:02:55]}  Nd7 {[%clk 0:02:51]} 8. f4 {[%clk 0:02:49]}  e5 {[%clk 0:02:32]} 9. fxe5 {[%clk 0:02:49]}  dxe5 {[%clk 0:02:33]} 10. dxe5 {[%clk 0:02:50]}  Nxe5 {[%clk 0:02:31]} 11. Be2 {[%clk 0:02:47]}  Qe7 {[%clk 0:02:25]} 12. Qc2 {[%clk 0:02:13]}  Rd8 {[%clk 0:02:18]} 13. O-O {[%clk 0:01:37]}  Nf6 {[%clk 0:02:03]} 14. h3 {[%clk 0:01:29]}  Qe6 {[%clk 0:01:49]} 15. Kg2 {[%clk 0:01:15]}  Nxc4 {[%clk 0:01:44]} 16. Bxa7 {[%clk 0:01:08]}  O-O {[%clk 0:01:42]} 17. Rad1 {[%clk 0:01:06]}  Rxd1 {[%clk 0:01:35]} 18. Rxd1 {[%clk 0:01:07]}  Nxb2 {[%clk 0:01:35]} 19. Qxb2 {[%clk 0:01:03]}  Nxe4 {[%clk 0:01:35]} 20. Bd4 {[%clk 0:00:35]}  Bxd4 {[%clk 0:01:07]} 21. Rxd4 {[%clk 0:00:36]}  Nxc3 {[%clk 0:01:07]} 22. Bc4 {[%clk 0:00:36]}  Nd5 {[%clk 0:01:02]} 23. Qxb7 {[%clk 0:00:33]}  Qf6 {[%clk 0:00:47]} 24. Re4 {[%clk 0:00:21]}  Nf4+ {[%clk 0:00:45]} 25. Kh2 {[%clk 0:00:21]}  Nxh3 {[%clk 0:00:41]} 26. Qb6 {[%clk 0:00:16]}  Nxf2 {[%clk 0:00:36]} 27. Re2 {[%clk 0:00:11]}  Ng4+ {[%clk 0:00:26]} 28. Kg3 {[%clk 0:00:11]}  Ne5 {[%clk 0:00:24]} 29. Qd4 {[%clk 0:00:06]}  Qf3+ {[%clk 0:00:21]} 30. Kh2 {[%clk 0:00:06]}  Nxc4 {[%clk 0:00:15]} 31. Qxc4 {[%clk 0:00:07]}  Rd8 {[%clk 0:00:14]} 32. Rg2 {[%clk 0:00:02]}  Qh5+ {[%clk 0:00:13]} 33. Kg1 {[%clk 0:00:02]}  Rd1+ {[%clk 0:00:13]} 34. Kf2 {[%clk 0:00:02]}  Qf5+ {[%clk 0:00:09]} 35. Kg3 {[%clk 0:00:03]}  Rd3+ {[%clk 0:00:09]} 36. Kh2 {[%clk 0:00:03]}  Qh3+ {[%clk 0:00:09]} 37. Kg1 {[%clk 0:00:04]}  Rd1+ {[%clk 0:00:10]} 38. Kf2 {[%clk 0:00:04]}  Rd2+ {[%clk 0:00:10]} 39. Ke1 {[%clk 0:00:03]}  Rxg2 {[%clk 0:00:09]} 0-1


[Site "https://www.chess.com"]

[Event "Titled Tuesday Blitz February 01 A 2022"]
[White "Caruana, Fabiano"]
[Black "Kravtsiv, Martyn"]
[WhiteFideId "2020009"]
[BlackFideId "14113147"]
[WhiteElo "2744"]
[BlackElo "2694"]
[Result "1-0"]
[Round "09"]
[TimeControl "180+1"]
[Date "2022.02.01"]
[WhiteClock "0:01:28"]
[BlackClock "0:00:17"]

1. Nf3 {[%clk 0:03:00]}  d5 {[%clk 0:02:59]} 2. b3 {[%clk 0:03:01]}  Bg4 {[%clk 0:02:53]} 3. Bb2 {[%clk 0:03:01]}  Nc6 {[%clk 0:02:54]} 4. e3 {[%clk 0:03:00]}  Nf6 {[%clk 0:02:46]} 5. h3 {[%clk 0:02:54]}  Bh5 {[%clk 0:02:45]} 6. g4 {[%clk 0:02:52]}  Bg6 {[%clk 0:02:45]} 7. d3 {[%clk 0:02:52]}  Qd7 {[%clk 0:02:43]} 8. Nbd2 {[%clk 0:02:51]}  O-O-O {[%clk 0:02:42]} 9. Bg2 {[%clk 0:02:50]}  e6 {[%clk 0:02:37]} 10. Qe2 {[%clk 0:02:49]}  Bd6 {[%clk 0:02:29]} 11. a3 {[%clk 0:02:46]}  h6 {[%clk 0:02:15]} 12. b4 {[%clk 0:02:46]}  Kb8 {[%clk 0:02:06]} 13. Nb3 {[%clk 0:02:43]}  Rhe8 {[%clk 0:01:55]} 14. b5 {[%clk 0:02:40]}  Ne7 {[%clk 0:01:54]} 15. a4 {[%clk 0:02:39]}  Nc8 {[%clk 0:01:48]} 16. Ne5 {[%clk 0:02:37]}  Bxe5 {[%clk 0:01:46]} 17. Bxe5 {[%clk 0:02:38]}  Qe7 {[%clk 0:01:46]} 18. O-O {[%clk 0:02:35]}  h5 {[%clk 0:01:45]} 19. Rfb1 {[%clk 0:02:32]}  hxg4 {[%clk 0:01:44]} 20. hxg4 {[%clk 0:02:32]}  Rh8 {[%clk 0:01:41]} 21. a5 {[%clk 0:02:28]}  Rh4 {[%clk 0:01:35]} 22. Nd4 {[%clk 0:02:15]}  Nxg4 {[%clk 0:01:26]} 23. Bg3 {[%clk 0:02:15]}  Rdh8 {[%clk 0:01:07]} 24. b6 {[%clk 0:02:04]}  axb6 {[%clk 0:00:32]} 25. axb6 {[%clk 0:02:04]}  e5 {[%clk 0:00:33]} 26. bxc7+ {[%clk 0:01:57]}  Qxc7 {[%clk 0:00:32]} 27. Bxd5 {[%clk 0:01:53]}  Nd6 {[%clk 0:00:29]} 28. Nc6+ {[%clk 0:01:34]}  Kc8 {[%clk 0:00:27]} 29. Ra8+ {[%clk 0:01:30]}  Kd7 {[%clk 0:00:25]} 30. Rxh8 {[%clk 0:01:29]}  Rxh8 {[%clk 0:00:23]} 31. Qxg4+ {[%clk 0:01:29]}  Bf5 {[%clk 0:00:17]} 32. Nxe5+ {[%clk 0:01:28]} 1-0


[Site "https://www.chess.com"]

[Event "Titled Tuesday Blitz February 01 A 2022"]
[White "Corrales Jimenez, Fidel"]
[Black "Willow, Jonah B"]
[WhiteFideId "3506690"]
[BlackFideId "438804"]
[WhiteElo "2541"]
[BlackElo "2261"]
[Result "1-0"]
[Round "09"]
[TimeControl "180+1"]
[Date "2022.02.01"]
[WhiteClock "0:00:11"]
[BlackClock "0:00:02"]

1. e4 {[%clk 0:02:52]}  c5 {[%clk 0:02:59]} 2. Nf3 {[%clk 0:02:51]}  Nc6 {[%clk 0:02:59]} 3. d4 {[%clk 0:02:51]}  cxd4 {[%clk 0:03:00]} 4. Nxd4 {[%clk 0:02:52]}  g6 {[%clk 0:03:01]} 5. c4 {[%clk 0:02:49]}  Nf6 {[%clk 0:02:59]} 6. Nc3 {[%clk 0:02:48]}  d6 {[%clk 0:02:59]} 7. Be2 {[%clk 0:02:47]}  Nxd4 {[%clk 0:03:00]} 8. Qxd4 {[%clk 0:02:48]}  Bg7 {[%clk 0:03:00]} 9. Be3 {[%clk 0:02:48]}  O-O {[%clk 0:03:01]} 10. Qd2 {[%clk 0:02:49]}  a5 {[%clk 0:03:00]} 11. O-O {[%clk 0:02:45]}  a4 {[%clk 0:03:00]} 12. f4 {[%clk 0:02:46]}  Qa5 {[%clk 0:02:51]} 13. Rad1 {[%clk 0:02:39]}  Bd7 {[%clk 0:02:36]} 14. e5 {[%clk 0:02:22]}  dxe5 {[%clk 0:02:29]} 15. fxe5 {[%clk 0:02:23]}  Qxe5 {[%clk 0:02:29]} 16. Bd4 {[%clk 0:02:23]}  Qa5 {[%clk 0:01:24]} 17. Bxf6 {[%clk 0:02:23]}  Bxf6 {[%clk 0:01:25]} 18. Qxd7 {[%clk 0:02:23]}  Qb6+ {[%clk 0:01:19]} 19. Rf2 {[%clk 0:01:29]}  Rfd8 {[%clk 0:01:14]} 20. Nd5 {[%clk 0:01:12]}  Rxd7 {[%clk 0:00:39]} 21. Nxb6 {[%clk 0:01:11]}  Rxd1+ {[%clk 0:00:40]} 22. Bxd1 {[%clk 0:01:11]}  Rd8 {[%clk 0:00:40]} 23. Bxa4 {[%clk 0:01:08]}  Bd4 {[%clk 0:00:38]} 24. Nd7 {[%clk 0:01:07]}  Ra8 {[%clk 0:00:33]} 25. b3 {[%clk 0:01:04]}  Ra5 {[%clk 0:00:32]} 26. Kf1 {[%clk 0:01:03]}  Bxf2 {[%clk 0:00:32]} 27. Kxf2 {[%clk 0:01:04]}  Kg7 {[%clk 0:00:33]} 28. c5 {[%clk 0:01:04]}  f5 {[%clk 0:00:30]} 29. Ke3 {[%clk 0:01:04]}  e5 {[%clk 0:00:24]} 30. Kd3 {[%clk 0:01:02]}  g5 {[%clk 0:00:20]} 31. Kc4 {[%clk 0:01:02]}  e4 {[%clk 0:00:21]} 32. Kd4 {[%clk 0:00:52]}  h5 {[%clk 0:00:19]} 33. g3 {[%clk 0:00:44]}  Kh6 {[%clk 0:00:18]} 34. Ne5 {[%clk 0:00:38]}  Ra8 {[%clk 0:00:13]} 35. h4 {[%clk 0:00:31]}  gxh4 {[%clk 0:00:11]} 36. gxh4 {[%clk 0:00:32]}  Rd8+ {[%clk 0:00:12]} 37. Bd7 {[%clk 0:00:32]}  Kg7 {[%clk 0:00:11]} 38. b4 {[%clk 0:00:26]}  Kf6 {[%clk 0:00:11]} 39. b5 {[%clk 0:00:27]}  e3 {[%clk 0:00:11]} 40. c6 {[%clk 0:00:27]}  bxc6 {[%clk 0:00:09]} 41. bxc6 {[%clk 0:00:28]}  e2 {[%clk 0:00:10]} 42. Nf3 {[%clk 0:00:28]}  Ke7 {[%clk 0:00:09]} 43. Ke3 {[%clk 0:00:28]}  Ra8 {[%clk 0:00:09]} 44. Bxf5 {[%clk 0:00:25]}  Kd6 {[%clk 0:00:07]} 45. Be4 {[%clk 0:00:17]}  Rxa2 {[%clk 0:00:06]} 46. Kf2 {[%clk 0:00:15]}  Ra4 {[%clk 0:00:03]} 47. Ng5 {[%clk 0:00:15]}  Rc4 {[%clk 0:00:03]} 48. Kxe2 {[%clk 0:00:14]}  Ke5 {[%clk 0:00:03]} 49. Kd3 {[%clk 0:00:13]}  Rc1 {[%clk 0:00:04]} 50. Nf3+ {[%clk 0:00:13]}  Kf4 {[%clk 0:00:04]} 51. Nd2 {[%clk 0:00:11]}  Rc5 {[%clk 0:00:03]} 52. Nc4 {[%clk 0:00:11]}  Kg3 {[%clk 0:00:03]} 53. Kd4 {[%clk 0:00:11]}  Rb5 {[%clk 0:00:02]} 54. c7 {[%clk 0:00:11]} 1-0


[Site "https://www.chess.com"]

[Event "Titled Tuesday Blitz February 01 A 2022"]
[White "Deac, Bogdan-Daniel"]
[Black "Vokhidov, Shamsiddin"]
[WhiteFideId "1226380"]
[BlackFideId "14204223"]
[WhiteElo "2646"]
[BlackElo "2611"]
[Result "1-0"]
[Round "09"]
[TimeControl "180+1"]
[Date "2022.02.01"]
[WhiteClock "0:00:11"]
[BlackClock "0:00:08"]

1. e4 {[%clk 0:03:00]}  c5 {[%clk 0:03:00]} 2. Nf3 {[%clk 0:03:00]}  d6 {[%clk 0:03:00]} 3. Bb5+ {[%clk 0:02:59]}  Nd7 {[%clk 0:03:00]} 4. d4 {[%clk 0:02:58]}  cxd4 {[%clk 0:02:58]} 5. Qxd4 {[%clk 0:02:59]}  a6 {[%clk 0:02:57]} 6. Be2 {[%clk 0:02:57]}  Ngf6 {[%clk 0:02:57]} 7. O-O {[%clk 0:02:52]}  e5 {[%clk 0:02:55]} 8. Qe3 {[%clk 0:02:51]}  Nc5 {[%clk 0:02:55]} 9. Nfd2 {[%clk 0:02:50]}  h5 {[%clk 0:02:50]} 10. Rd1 {[%clk 0:02:47]}  g6 {[%clk 0:02:48]} 11. Nc4 {[%clk 0:02:11]}  Qc7 {[%clk 0:02:46]} 12. Nc3 {[%clk 0:01:37]}  b5 {[%clk 0:02:44]} 13. Qf3 {[%clk 0:01:37]}  Ncxe4 {[%clk 0:01:30]} 14. Nxe4 {[%clk 0:01:32]}  Nxe4 {[%clk 0:01:31]} 15. Nd2 {[%clk 0:01:32]}  d5 {[%clk 0:01:27]} 16. Nxe4 {[%clk 0:01:24]}  dxe4 {[%clk 0:01:28]} 17. Qxe4 {[%clk 0:01:24]}  Bb7 {[%clk 0:01:29]} 18. Qe3 {[%clk 0:01:19]}  Bc5 {[%clk 0:01:22]} 19. Qh3 {[%clk 0:01:13]}  O-O {[%clk 0:01:12]} 20. Bg5 {[%clk 0:00:44]}  Qb6 {[%clk 0:01:08]} 21. Qh4 {[%clk 0:00:28]}  f6 {[%clk 0:01:06]} 22. Bh6 {[%clk 0:00:24]}  Rfd8 {[%clk 0:00:57]} 23. b4 {[%clk 0:00:18]}  Bd4 {[%clk 0:00:45]} 24. c3 {[%clk 0:00:17]}  Bxc3 {[%clk 0:00:40]} 25. Qg3 {[%clk 0:00:17]}  Kh7 {[%clk 0:00:31]} 26. Bxh5 {[%clk 0:00:17]}  Be4 {[%clk 0:00:27]} 27. Qxc3 {[%clk 0:00:11]}  Kxh6 {[%clk 0:00:24]} 28. Be2 {[%clk 0:00:08]}  Rac8 {[%clk 0:00:23]} 29. Qh3+ {[%clk 0:00:08]}  Kg7 {[%clk 0:00:22]} 30. Rd7+ {[%clk 0:00:09]}  Rxd7 {[%clk 0:00:10]} 31. Qxd7+ {[%clk 0:00:10]}  Kh6 {[%clk 0:00:10]} 32. Qxc8 {[%clk 0:00:10]}  Qd4 {[%clk 0:00:10]} 33. Qh8+ {[%clk 0:00:09]}  Kg5 {[%clk 0:00:10]} 34. h4+ {[%clk 0:00:10]}  Kf4 {[%clk 0:00:09]} 35. Qxf6+ {[%clk 0:00:10]}  Bf5 {[%clk 0:00:09]} 36. Qg5+ {[%clk 0:00:10]}  Ke4 {[%clk 0:00:09]} 37. Bf3+ {[%clk 0:00:10]}  Kd3 {[%clk 0:00:08]} 38. Rd1+ {[%clk 0:00:11]} 1-0


[Site "https://www.chess.com"]

[Event "Titled Tuesday Blitz February 01 A 2022"]
[White "Dobrov, Vladimir"]
[Black "Lin, Dachey"]
[WhiteFideId "4136594"]
[BlackFideId "2029650"]
[WhiteElo "2614"]
[BlackElo "2684"]
[Result "1-0"]
[Round "09"]
[TimeControl "180+1"]
[Date "2022.02.01"]
[WhiteClock "0:00:06"]
[BlackClock "0:00:02"]

1. d4 {[%clk 0:02:49]}  g6 {[%clk 0:03:00]} 2. e4 {[%clk 0:02:47]}  Bg7 {[%clk 0:03:01]} 3. Nc3 {[%clk 0:02:47]}  d5 {[%clk 0:03:01]} 4. exd5 {[%clk 0:02:24]}  Nf6 {[%clk 0:03:00]} 5. Bc4 {[%clk 0:02:11]}  Nbd7 {[%clk 0:03:00]} 6. Bb3 {[%clk 0:01:58]}  Nb6 {[%clk 0:03:00]} 7. Nf3 {[%clk 0:01:53]}  O-O {[%clk 0:02:59]} 8. O-O {[%clk 0:01:52]}  Nbxd5 {[%clk 0:03:00]} 9. h3 {[%clk 0:01:52]}  c6 {[%clk 0:03:00]} 10. Re1 {[%clk 0:01:52]}  a5 {[%clk 0:02:58]} 11. a4 {[%clk 0:01:44]}  Re8 {[%clk 0:02:50]} 12. Ne5 {[%clk 0:01:43]}  Be6 {[%clk 0:02:50]} 13. Bg5 {[%clk 0:01:38]}  Qb6 {[%clk 0:02:37]} 14. Nc4 {[%clk 0:01:34]}  Qc7 {[%clk 0:02:31]} 15. Rxe6 {[%clk 0:01:33]}  fxe6 {[%clk 0:02:32]} 16. Qe2 {[%clk 0:01:31]}  Qd7 {[%clk 0:02:15]} 17. Nb6 {[%clk 0:01:07]}  Qd6 {[%clk 0:02:14]} 18. Nxa8 {[%clk 0:01:07]}  Rxa8 {[%clk 0:02:14]} 19. Re1 {[%clk 0:01:06]}  Kf7 {[%clk 0:02:14]} 20. Ne4 {[%clk 0:01:02]}  Nxe4 {[%clk 0:02:13]} 21. Qxe4 {[%clk 0:01:02]}  Bf6 {[%clk 0:02:09]} 22. Bd2 {[%clk 0:01:01]}  b5 {[%clk 0:02:06]} 23. h4 {[%clk 0:00:54]}  h5 {[%clk 0:01:39]} 24. c3 {[%clk 0:00:54]}  Rg8 {[%clk 0:01:33]} 25. Bd1 {[%clk 0:00:48]}  Nb6 {[%clk 0:01:28]} 26. axb5 {[%clk 0:00:47]}  cxb5 {[%clk 0:01:29]} 27. Bc1 {[%clk 0:00:44]}  b4 {[%clk 0:01:26]} 28. Bb3 {[%clk 0:00:38]}  Nd5 {[%clk 0:01:22]} 29. c4 {[%clk 0:00:38]}  Nc7 {[%clk 0:01:22]} 30. Bf4 {[%clk 0:00:37]}  Qd7 {[%clk 0:01:17]} 31. Bxc7 {[%clk 0:00:37]}  Qxc7 {[%clk 0:01:18]} 32. Qxe6+ {[%clk 0:00:37]}  Kg7 {[%clk 0:01:18]} 33. c5 {[%clk 0:00:37]}  Rf8 {[%clk 0:01:17]} 34. Re4 {[%clk 0:00:37]}  Qb7 {[%clk 0:01:12]} 35. Bd5 {[%clk 0:00:33]}  Qb5 {[%clk 0:01:10]} 36. b3 {[%clk 0:00:33]}  Qd3 {[%clk 0:01:10]} 37. Bc4 {[%clk 0:00:30]}  Qd1+ {[%clk 0:01:08]} 38. Kh2 {[%clk 0:00:30]}  Qd2 {[%clk 0:01:08]} 39. Re2 {[%clk 0:00:16]}  Qxd4 {[%clk 0:01:07]} 40. g3 {[%clk 0:00:17]}  Qxc5 {[%clk 0:01:06]} 41. Qd7 {[%clk 0:00:16]}  Kh6 {[%clk 0:00:54]} 42. Kg2 {[%clk 0:00:15]}  Kg7 {[%clk 0:00:54]} 43. f4 {[%clk 0:00:12]}  Kh6 {[%clk 0:00:43]} 44. Qd2 {[%clk 0:00:12]}  Kg7 {[%clk 0:00:42]} 45. Qd7 {[%clk 0:00:12]}  Rc8 {[%clk 0:00:32]} 46. Re6 {[%clk 0:00:08]}  Qc7 {[%clk 0:00:27]} 47. Qd5 {[%clk 0:00:08]}  Rd8 {[%clk 0:00:26]} 48. Qe4 {[%clk 0:00:08]}  Rd2+ {[%clk 0:00:25]} 49. Kh3 {[%clk 0:00:09]}  Qd7 {[%clk 0:00:24]} 50. f5 {[%clk 0:00:09]}  Rd4 {[%clk 0:00:23]} 51. Qf3 {[%clk 0:00:09]}  a4 {[%clk 0:00:17]} 52. Qe2 {[%clk 0:00:07]}  a3 {[%clk 0:00:17]} 53. fxg6 {[%clk 0:00:08]}  a2 {[%clk 0:00:17]} 54. Qxh5 {[%clk 0:00:08]}  Qxe6+ {[%clk 0:00:02]} 55. Bxe6 {[%clk 0:00:07]}  Be5 {[%clk 0:00:02]} 56. Qxe5+ {[%clk 0:00:06]} 1-0


[Site "https://www.chess.com"]

[Event "Titled Tuesday Blitz February 01 A 2022"]
[White "Girish, A. Koushik"]
[Black "Visakh N R"]
[WhiteFideId "5038448"]
[BlackFideId "25012223"]
[WhiteElo "2387"]
[BlackElo "2454"]
[Result "0-1"]
[Round "09"]
[TimeControl "180+1"]
[Date "2022.02.01"]
[WhiteClock "0:00:02"]
[BlackClock "0:00:06"]

1. d4 {[%clk 0:03:00]}  Nf6 {[%clk 0:02:58]} 2. c4 {[%clk 0:03:00]}  c5 {[%clk 0:02:57]} 3. Nf3 {[%clk 0:02:57]}  e6 {[%clk 0:02:51]} 4. d5 {[%clk 0:02:51]}  exd5 {[%clk 0:02:51]} 5. cxd5 {[%clk 0:02:52]}  d6 {[%clk 0:02:51]} 6. Nc3 {[%clk 0:02:51]}  g6 {[%clk 0:02:51]} 7. Bf4 {[%clk 0:02:49]}  Bg7 {[%clk 0:02:50]} 8. Qa4+ {[%clk 0:02:48]}  Bd7 {[%clk 0:02:46]} 9. Qb3 {[%clk 0:02:47]}  b5 {[%clk 0:02:43]} 10. Bxd6 {[%clk 0:02:42]}  Qb6 {[%clk 0:02:23]} 11. Be5 {[%clk 0:02:39]}  O-O {[%clk 0:02:19]} 12. e3 {[%clk 0:02:35]}  c4 {[%clk 0:02:09]} 13. Qd1 {[%clk 0:02:11]}  b4 {[%clk 0:02:01]} 14. Ne2 {[%clk 0:02:07]}  Qa5 {[%clk 0:01:34]} 15. Nf4 {[%clk 0:02:04]}  Bb5 {[%clk 0:01:28]} 16. Be2 {[%clk 0:01:48]}  Nbd7 {[%clk 0:01:27]} 17. Bd4 {[%clk 0:01:47]}  Nb6 {[%clk 0:01:08]} 18. O-O {[%clk 0:01:44]}  Rfd8 {[%clk 0:01:08]} 19. a3 {[%clk 0:00:51]}  Nfxd5 {[%clk 0:01:05]} 20. Nxd5 {[%clk 0:00:50]}  Nxd5 {[%clk 0:01:03]} 21. Qc1 {[%clk 0:00:40]}  b3 {[%clk 0:00:51]} 22. Bxg7 {[%clk 0:00:37]}  Kxg7 {[%clk 0:00:51]} 23. Nd4 {[%clk 0:00:37]}  Rac8 {[%clk 0:00:51]} 24. e4 {[%clk 0:00:35]}  Ne7 {[%clk 0:00:35]} 25. Rd1 {[%clk 0:00:30]}  Ba6 {[%clk 0:00:34]} 26. Qe3 {[%clk 0:00:20]}  Qb6 {[%clk 0:00:13]} 27. h4 {[%clk 0:00:19]}  Nc6 {[%clk 0:00:09]} 28. Nf5+ {[%clk 0:00:06]}  gxf5 {[%clk 0:00:10]} 29. Qg5+ {[%clk 0:00:05]}  Kf8 {[%clk 0:00:11]} 30. Qh6+ {[%clk 0:00:04]}  Ke8 {[%clk 0:00:11]} 31. Qxh7 {[%clk 0:00:03]}  Nd4 {[%clk 0:00:10]} 32. Bh5 {[%clk 0:00:03]}  Qf6 {[%clk 0:00:10]} 33. e5 {[%clk 0:00:02]}  Qe7 {[%clk 0:00:10]} 34. Qh8+ {[%clk 0:00:02]}  Qf8 {[%clk 0:00:10]} 35. Qf6 {[%clk 0:00:02]}  Bb7 {[%clk 0:00:06]} 0-1


[Site "https://www.chess.com"]

[Event "Titled Tuesday Blitz February 01 A 2022"]
[White "Indjic, Aleksandar"]
[Black "Nesterov, Arseniy"]
[WhiteFideId "911925"]
[BlackFideId "24198455"]
[WhiteElo "2616"]
[BlackElo "2489"]
[Result "1/2-1/2"]
[Round "09"]
[TimeControl "180+1"]
[Date "2022.02.01"]
[WhiteClock "0:02:19"]
[BlackClock "0:01:10"]

1. d4 {[%clk 0:03:00]}  d5 {[%clk 0:03:00]} 2. Nf3 {[%clk 0:03:01]}  Nf6 {[%clk 0:03:00]} 3. Bf4 {[%clk 0:03:02]}  Bf5 {[%clk 0:03:00]} 4. e3 {[%clk 0:03:02]}  e6 {[%clk 0:03:00]} 5. Bd3 {[%clk 0:02:57]}  Bg6 {[%clk 0:03:00]} 6. Ne5 {[%clk 0:02:56]}  Bd6 {[%clk 0:02:59]} 7. Nd2 {[%clk 0:02:56]}  Nbd7 {[%clk 0:02:58]} 8. O-O {[%clk 0:02:55]}  O-O {[%clk 0:02:57]} 9. Qe2 {[%clk 0:02:54]}  Nh5 {[%clk 0:02:42]} 10. Nxg6 {[%clk 0:02:51]}  hxg6 {[%clk 0:02:41]} 11. Bxd6 {[%clk 0:02:51]}  cxd6 {[%clk 0:02:42]} 12. c4 {[%clk 0:02:51]}  dxc4 {[%clk 0:02:42]} 13. Nxc4 {[%clk 0:02:50]}  d5 {[%clk 0:02:41]} 14. Ne5 {[%clk 0:02:50]}  Nhf6 {[%clk 0:02:39]} 15. Nxd7 {[%clk 0:02:44]}  Qxd7 {[%clk 0:02:36]} 16. Rfc1 {[%clk 0:02:45]}  Rac8 {[%clk 0:02:36]} 17. Qd2 {[%clk 0:02:45]}  Rxc1+ {[%clk 0:02:33]} 18. Rxc1 {[%clk 0:02:46]}  Rc8 {[%clk 0:02:33]} 19. Rc2 {[%clk 0:02:44]}  Ne8 {[%clk 0:02:09]} 20. Qc1 {[%clk 0:02:44]}  Rxc2 {[%clk 0:02:08]} 21. Qxc2 {[%clk 0:02:45]}  Qc7 {[%clk 0:01:48]} 22. Qd2 {[%clk 0:02:42]}  Nd6 {[%clk 0:01:45]} 23. g3 {[%clk 0:02:42]}  a5 {[%clk 0:01:43]} 24. h4 {[%clk 0:02:42]}  b6 {[%clk 0:01:43]} 25. Kg2 {[%clk 0:02:41]}  Qc6 {[%clk 0:01:41]} 26. Qd1 {[%clk 0:02:41]}  Ne4 {[%clk 0:01:34]} 27. Qb3 {[%clk 0:02:37]}  Nd6 {[%clk 0:01:29]} 28. Kf3 {[%clk 0:02:34]}  f5 {[%clk 0:01:15]} 29. Ke2 {[%clk 0:02:33]}  Kf7 {[%clk 0:01:15]} 30. Qc2 {[%clk 0:02:29]}  Qxc2+ {[%clk 0:01:14]} 31. Bxc2 {[%clk 0:02:30]}  Nc4 {[%clk 0:01:10]} 32. b3 {[%clk 0:02:30]}  Nd6 {[%clk 0:01:10]} 33. Bd3 {[%clk 0:02:29]}  Kf6 {[%clk 0:01:10]} 34. a4 {[%clk 0:02:23]}  g5 {[%clk 0:01:09]} 35. hxg5+ {[%clk 0:02:22]}  Kxg5 {[%clk 0:01:10]} 36. Kf3 {[%clk 0:02:19]}  Kf6 {[%clk 0:01:10]} 1/2-1/2


[Site "https://www.chess.com"]